Cogmind - Beta 15 @@@ ROGUE MODE // 2025.09.12 @ 17:59:05 Player: Kotyk77 Result: Destroyed by X-72 Disruptor with Arc Projector Performance ------------- Evolutions (4) 2000 Regions Visited (7) 1400 Robots Destroyed (95) 475 Value Destroyed (3906) 3906 Prototype IDs (4) 80 Alien Tech Used (0) 0 Bonus (1754) 1754 TOTAL SCORE: 9615 Bonus ------- High Alert Combat Kills 565 Follower Combat Kills 1241 Friendly Fire -52 Cogmind --------- Core Integrity 0/850 Matter 207/300 Energy 100/100 System Corruption 16% Temperature Cool (0) Movement Core (700) Ox13 Location -6/Factory Parts ------- > --- POWER (2) -------- (None) > --- PROPULSION (3) --- (None) > --- UTILITY (7) ------ High-capacity Storage Unit Enhanced Optical Array Advanced Targeting Computer Hacking Suite > --- WEAPON (3) ------- (None) > --- INVENTORY (20) --- Improved Thermal Generator Improved Cooling System High-capacity Storage Unit Medium Matter Pod (100) Matter Compressor (113) Advanced Weight Redist. System Kinecellerator Improved Utility Shielding Centrium Heavy Armor Plating Heavy Battle Rifle Remote Datajack Peak State ------------ > --- POWER ------------ Deuterium Engine Antimatter Reactor > --- PROPULSION ------- Medium Armored Exoskeleton > --- UTILITY ---------- High-capacity Storage Unit Advanced Sensor Array Transmission Jammer Improved Utility Shielding Hardened Medium Armor Plating Reactive Plating Hacking Suite > --- WEAPON ----------- Heavy Battle Rifle Heavy Battle Rifle Remote Datajack > --- INVENTORY -------- Light Deuterium Engine Hybrid Deuterium Engine Micro Nuclear Core Micro Nuclear Core Heavy Treads Improved Titanium Leg Improved Titanium Leg Improved Titanium Leg Improved Titanium Leg Improved Titanium Leg Damper Plating Heavy Battle Rifle Advanced Assault Cannon Advanced Assault Cannon Great Maul Spear [Rating: 71] Favorites ----------- Power Deuterium Engine Engine Deuterium Engine Power Core Light Nuclear Core Reactor Antimatter Reactor Propulsion Medium Armored Exoskeleton Treads Armored Treads Leg Medium Armored Exoskeleton Utility Hacking Suite Device Transmission Jammer Storage Large Storage Unit Processor Enhanced Optical Array Hackware Hacking Suite Protection Hardened Medium Armor Plating Weapon Heavy Battle Rifle Energy Gun Pulse Rifle Energy Cannon Heavy Plasma Cannon Ballistic Gun Heavy Battle Rifle Ballistic Cannon Advanced Assault Cannon Launcher Grenade Launcher Special Weapon Remote Datajack Impact Weapon Great Maul Slashing Weapon Scythe Piercing Weapon Spear Build | -11 -10 -10 -8 -7 -7 -7 -6 ------- Run | Yrd Mat Sub Mat Fac Was Fac Fac Slots Evolved 8 | . . . 4 2 . . 2 Power 1 | . . . . . . . 1 Propulsion 1 | . . . 1 . . . . Utility 5 | . . . 3 1 . . 1 Weapon 1 | . . . . 1 . . . Parts Attached 112 | 6 3 3 24 4 6 10 56 Power 20 | 1 . . 4 . . 1 14 Engine 10 | 1 . . 1 . . 1 7 Core 9 | . . . 3 . . . 6 Reactor 1 | . . . . . . . 1 Propulsion 22 | 2 . . 8 . 1 . 11 Treads 8 | . . . 8 . . . . Leg 14 | 2 . . . . 1 . 11 Wheel . | . . . . . . . . Hover . | . . . . . . . . Flight . | . . . . . . . . Utility 38 | 1 2 2 6 1 3 3 20 Device 17 | . . 2 3 1 . . 11 Storage 5 | 1 1 . . . . 2 1 Processor 6 | . 1 . . . . . 5 Hackware 3 | . . . 1 . . . 2 Protection 7 | . . . 2 . 3 1 1 Artifact . | . . . . . . . . Weapon 32 | 2 1 1 6 3 2 6 11 Energy Gun 7 | 1 . . 3 . . . 3 Energy Cannon 2 | . . . . . . . 2 Ballistic Gun 13 | 1 . 1 2 1 1 3 4 Ballistic Cannon 3 | . . . 1 . . 2 . Launcher 1 | . 1 . . . . . . Special Weapon 2 | . . . . 1 . 1 . Impact Weapon 2 | . . . . . 1 . 1 Slashing Weapon 1 | . . . . 1 . . . Piercing Weapon 1 | . . . . . . . 1 Special Melee Weapon . | . . . . . . . . Unidentified Prototypes 4 | . . . 1 . 1 1 1 Corrupted Parts 1 | . . . . . . . 1 System Corruption 7 | . . . . . . . 7 Parts Lost 51 | . . . 6 . . . 45 Power 10 | . . . . . . . 10 Propulsion 10 | . . . 1 . . . 9 Utility 16 | . . . 1 . . . 15 Weapon 15 | . . . 4 . . . 11 Highest Loss Streak 12 | . . . 2 . . . 12 To Critical Strikes 1 | . . . . . . . 1 Average Backups 14 | 2 4 10 12 14 13 13 17 Power 3 | . 1 3 5 6 4 2 3 Propulsion 3 | 1 2 2 1 4 2 3 4 Utility 2 | . . . . . 1 2 4 Weapon 4 | . 1 3 5 4 4 3 4 Tool/Special . | . . . . . . . . Unused Backups 35 | . . 3 10 . 9 3 10 Power 9 | . . 1 5 . 3 . . Propulsion 9 | . . 2 2 . 3 1 1 Utility 11 | . . . . . 1 1 9 Weapon 6 | . . . 3 . 2 1 . Tool/Special . | . . . . . . . . Average Slot Usage (%) 89 | . 98 100 85 92 90 84 88 Engine 8 | . 14 14 . 7 7 7 9 Core 2 | . . . 8 . . . 2 Treads 5 | . . . 26 23 9 . . Leg 10 | . 28 28 . . 4 7 11 Device 11 | . . 10 11 11 12 7 14 Storage 8 | . 22 14 9 7 6 7 6 Processor 3 | . 4 3 . . . . 6 Hackware 6 | . . . . 7 7 7 10 Protection 9 | . . . 10 15 17 23 6 Energy Gun 2 | . 14 3 3 7 6 . 1 Ballistic Gun 9 | . 7 10 9 7 7 13 7 Ballistic Cannon 1 | . . . 4 . . . 1 Launcher 2 | . 7 14 . . . . . Special Weapon 1 | . . . . . . 5 1 Impact Weapon 2 | . . . . . 6 1 3 Peak Build Rating 71 | 6 8 11 36 41 59 60 71 Average Rating 46 | 4 7 10 27 37 52 58 63 On Entrance 27 | . 6 8 11 34 41 59 59 Naked Turns . | . . . . . . . . Heaviest Build 98 | 13 35 34 45 45 59 83 98 Greatest Support 76 | 20 20 20 76 76 76 50 69 Greatest Overweight (x) 15 | 4 1 1 1 . 1 1 15 Average Overweight (x) . | . . 1 . . . 1 1 Largest Inventory Capacity 20 | 8 15 15 15 15 15 20 20 Average Capacity 17 | 7 14 15 15 15 14 17 20 Most Carried 20 | 4 6 15 15 15 15 20 20 Average Carried 15 | 2 4 13 14 14 14 17 17 Final Capacity 20 | 8 15 15 15 15 15 20 20 Final Carried 20 | 4 6 15 15 15 15 20 12 Class Distribution -------------------- 52% | Mutant 14% | Hacker-Mutant 14% | Tank 9% | Scavenger-Mutant 9% | Hacker-Tank Dominant Class ---------------- Mutant | -10/Materials Mutant | -10/Subcaves Mutant | -8/Materials Mutant | -7/Factory Mutant | -7/Waste Tank | -7/Factory Hacker-Mutant | -6/Factory Resources | -11 -10 -10 -8 -7 -7 -7 -6 ----------- Run | Yrd Mat Sub Mat Fac Was Fac Fac Matter Collected 2814 | 218 37 166 883 . 150 133 1227 Remotely . | . . . . . . . . Salvage Created 4128 | . 39 172 1572 . . 14 2331 Parts 159 | . 7 8 82 . . . 62 Haulers Intercepted 1 | . . . . . . . 1 Recyclers Shooed 1 | . . . . . . . 1 Parts Field Recycled . | . . . . . . . . Retrieved Matter . | . . . . . . . . Parts Self-Destructed 8 | . . 8 . . . . . Prevented . | . . . . . . . . Kills | -11 -10 -10 -8 -7 -7 -7 -6 ------- Run | Yrd Mat Sub Mat Fac Was Fac Fac Combat Hostiles Destroyed 67 | . . 5 31 . . . 31 Melee 12 | . . . . . . . 12 Guns 25 | . . . 17 . . . 8 Cannons 10 | . . . 6 . . . 4 AOE 13 | . . 5 8 . . . . Classes Destroyed 16 | . 2 1 8 . . . 5 Worker 4 | . . . 4 . . . . Builder 6 | . 1 . 3 . . . 2 Tunneler 1 | . . . . . . . 1 Hauler 1 | . . . . . . . 1 Recycler 5 | . . . 1 . . . 4 Mechanic 1 | . . . . . . . 1 Operator 1 | . . . 1 . . . . Watcher 9 | . 1 . 3 . . 1 4 Grunt 32 | . . . 17 . . . 15 Brawler 2 | . . . 2 . . . . Duelist 4 | . . . 3 . . . 1 Sentry 9 | . . . 6 . . . 3 Specialist 3 | . . . . . . . 3 Hunter 7 | . . . 3 . . . 4 Programmer 5 | . . . . . . . 5 Subdweller 5 | . . 5 . . . . . Best Kill Streak 8 | . 2 3 8 . . 1 4 Combat Bots Only 8 | . . 3 8 . . . 3 Max Kills in Single Turn 3 | . 2 3 3 . . 1 1 Gunslinging . | . . . . . . . . Exploded 3 | . . 3 2 . . . . Melee 1 | . . . . . . . 1 Uniques/NPCs Destroyed . | . . . . . . . . Combat | -11 -10 -10 -8 -7 -7 -7 -6 -------- Run | Yrd Mat Sub Mat Fac Was Fac Fac Hostile Shots Fired 871 | . . 14 191 . 1 19 646 Missed 246 | . . 8 50 . . 9 179 Hits 625 | . . 6 141 . 1 10 467 Melee 2 | . . . 1 . 1 . . Projectile 623 | . . 6 140 . . 10 467 AOE 3 | . . . . . . . 3 Critical Strikes 18 | . . . 4 . 1 1 12 Part Disruptions 8 | . . . . . . . 8 Actively Blocked 6 | . . . . . . . 6 Damage Taken 9707 | . . 152 2068 . 44 166 7277 Core 1077 | . . 27 187 . . 10 853 Absorbed by Shields . | . . . . . . . . Redirected to Shielding 17 | . . . 17 . . . . Ignored by Resistances 231 | . . . . . . . 231 Regen/Repaired (Parts) 248 | . . . . . 98 . 150 Core Remaining (%) 88 | 100 . 89 66 . . 98 . Volleys Fired 220 | . 2 7 107 . . 5 99 Largest 2 | . 2 2 2 . . 2 2 Hottest 159 | . 80 80 93 . . 66 159 Shots Fired 369 | . 4 14 199 . . 10 142 Gun 250 | . 2 7 131 . . 10 100 Cannon 102 | . . . 60 . . . 42 Launcher 17 | . 2 7 8 . . . . Special . | . . . . . . . . Kinetic 283 | . . 3 166 . . 10 104 Thermal 41 | . 2 4 6 . . . 29 Explosive 17 | . 2 7 8 . . . . Electromagnetic 28 | . . . 19 . . . 9 Robot Hit Streak 16 | . 1 3 13 . . 1 16 Robot Miss Streak 7 | . 2 1 7 . . 4 5 Penetration Max 2 | . . . 1 . . . 2 Secondary Targets 1 | . . . . . . . 1 Max Gunslinging Chain 1 | . . . . . . . 1 Shots Hit Robots 300 | . 1 7 130 . . 2 160 Core Hits 143 | . 5 7 85 . . 1 45 Critical Kills 6 | . . . . . . . 6 Critical Parts Destroyed 16 | . . . 2 . . . 14 Critical Strikes 27 | . . . 4 . . . 23 Destroy 3 | . . . 2 . . . 1 Blast 4 | . . . 2 . . . 2 Smash 20 | . . . . . . . 20 Melee Attacks 109 | . . . . 2 . . 107 Impact 107 | . . . . . . . 107 Slashing 2 | . . . . 2 . . . Piercing . | . . . . . . . . Sneak Attacks 8 | . . . . . . . 8 Combat Hostiles . | . . . . . . . . Follow-up Attacks . | . . . . . . . . Damage Inflicted 9690 | . 95 430 3356 . . 45 5764 Guns 3447 | . 13 37 1759 . . 42 1596 Cannons 1741 | . . . 751 . . . 990 Explosions 1408 | . 82 393 829 . . . 104 Melee 3065 | . . . . . . . 3065 Ramming 29 | . . . 17 . . 3 9 Kinetic 4056 | . . . 2110 . . 42 1904 Thermal 792 | . 13 37 83 . . . 659 Explosive 1304 | . 82 393 829 . . . . Electromagnetic 444 | . . . 317 . . . 127 Impact 3065 | . . . . . . . 3065 Slashing . | . . . . . . . . Piercing . | . . . . . . . . Highest Corruption 16 | . . . . . . . 16 Average Corruption 4 | . . . . . . . 4 Corruption Purged . | . . . . . . . . Corruption Blocked . | . . . . . . . . Effects 87 | . . . . . . . 87 Message Errors 28 | . . . . . . . 28 Matter Fused 20 | . . . . . . . 20 Heat Flow Errors 10 | . . . . . . . 10 Energy Discharges 10 | . . . . . . . 10 Parts Rejected 1 | . . . . . . . 1 Parts Fused 1 | . . . . . . . 1 Data Loss (minor) 10 | . . . . . . . 10 Data Loss (major) 4 | . . . . . . . 4 Misfires 1 | . . . . . . . 1 Weapon Failures 2 | . . . . . . . 2 Overload Shots . | . . . . . . . . Overflow Damage 1255 | . . . 71 . . . 1184 Projectiles 53 | . . . 32 . . . 21 Explosions 54 | . . . 39 . . . 15 Melee 1148 | . . . . . . . 1148 Knockbacks 36 | . . . 7 . . . 29 Impact 17 | . . . . . . . 17 Kinetic 18 | . . . 7 . . . 11 Secondary 1 | . . . . . . . 1 Self-Inflicted Damage 173 | . . 22 151 . . . . Shots 5 | . . 1 4 . . . . Rammed 3 | . . . 3 . . . . Targets Rammed 8 | . 1 . 3 . . 2 2 Kicked 5 | . 1 . . . . 2 2 Crushed . | . . . . . . . . Highest Temperature 790 | . 18 . 54 . . 48 790 Average Temperature 96 | . 12 . 10 . . 20 127 Received Heat Transfer 2721 | . . 27 756 . . 57 1881 Effects 18 | . . . . . . . 18 Shutdowns 3 | . . . . . . . 3 Energy Bleed 1 | . . . . . . . 1 Interference 8 | . . . . . . . 8 Matter Decay 3 | . . . . . . . 3 Short Circuit 1 | . . . . . . . 1 Damage (major) 2 | . . . . . . . 2 Siege Activations . | . . . . . . . . Martial Activations . | . . . . . . . . Shielding Activations . | . . . . . . . . Robots Disrupted . | . . . . . . . . Combat Hostiles . | . . . . . . . . Robots Corrupted 14 | . . . . . . . 14 Combat Hostiles 7 | . . . . . . . 7 Parts Fried 31 | . . . 1 . . . 30 Impact Corruptions 37 | . . . . . . . 37 Robots Melted . | . . . . . . . . Combat Hostiles . | . . . . . . . . Parts Melted 2 | . . . . . . . 2 Heat Transferred 1353 | . 37 111 185 . . . 1020 Parts Sabotaged . | . . . . . . . . Parts Stolen . | . . . . . . . . Parts Stripped . | . . . . . . . . Power Chain Reactions . | . . . . . . . . Alert | -11 -10 -10 -8 -7 -7 -7 -6 ------- Run | Yrd Mat Sub Mat Fac Was Fac Fac Maximum Alert Level 3 | . . . 1 . . 3 3 Low Security (%) 34 | 100 100 . 57 100 100 34 . Level 1 22 | . . . 42 . . 42 15 Level 2 33 | . . . . . . 7 68 Level 3 10 | . . . . . . 15 15 Level 4 . | . . . . . . . . Level 5 . | . . . . . . . . High Security . | . . . . . . . . Max Security . | . . . . . . . . Peak Influence 897 | . 35 . 351 113 . 897 791 Initial 431 | . . . . 113 . . 431 Average 328 | . 4 . 189 41 . 310 508 Influence Increases 4154 | . 80 45 999 2 . 1431 1597 Destroy 0b10 Robot/C 1960 | . . . 620 . . 540 800 Destroy 0b10 Robot/NC 140 | . 10 . 60 . . 5 65 Destroy Leader 500 | . 2 . 166 . . 122 210 Allied During Kill 752 | . . . . . . 649 103 Successful Hack 79 | . . . . . . 53 26 Disable Machine 300 | . 15 . 90 . . . 195 Destroy Structure 138 | . 8 . 18 2 . 47 63 Partial Spotted 15 | . . . . . . 15 . Lose Combat Pursuer 270 | . 45 45 45 . . . 135 Influence Decreases 3476 | . 45 80 749 251 1 550 1800 Entered New Map 606 | . . 18 . 137 1 . 450 Time Decay 1970 | . 45 62 539 114 . 450 760 Lost Part 510 | . . . 60 . . . 450 Lost Ally 240 | . . . . . . 100 140 Purge Threat 150 | . . . 150 . . . . Squads Dispatched 42 | . 1 . 12 1 . 8 20 Investigation 10 | . . . 3 . . 3 4 Extermination 11 | . . . . 1 . 3 7 Reinforcement 14 | . 1 . 2 . . 2 9 Assault . | . . . . . . . . Garrison 7 | . . . 7 . . . . Intercept . | . . . . . . . . Searches Triggered . | . . . . . . . . Construction Impeded 1 | . . . 1 . . . . Haulers Reinforced 1 | . . . . . . . 1 Active Scanning Responses . | . . . . . . . . Cargo Convoy Interrupts 1 | . . . . . . . 1 Stealth | -11 -10 -10 -8 -7 -7 -7 -6 --------- Run | Yrd Mat Sub Mat Fac Was Fac Fac Distress Signals 8 | . 1 . 1 . . 2 4 Communications Jammed 23 | . . . . . . . 23 Distress Signals 23 | . . . . . . . 23 Times Spotted 131 | . 2 7 45 . 1 10 66 Peak Tracking Total 8 | . 3 3 6 . 1 1 8 Tactical Retreats 14 | . 1 2 2 . . . 9 Traps | -11 -10 -10 -8 -7 -7 -7 -6 ------- Run | Yrd Mat Sub Mat Fac Was Fac Fac Traps Triggered 3 | . . . . 1 . . 2 Indirectly . | . . . . . . . . Trap Hack Attempts . | . . . . . . . . Triggered . | . . . . . . . . Disarmed . | . . . . . . . . Reprogrammed . | . . . . . . . . Reused . | . . . . . . . . Traps Extracted . | . . . . . . . . Installed . | . . . . . . . . Triggered . | . . . . . . . . Machines | -11 -10 -10 -8 -7 -7 -7 -6 ---------- Run | Yrd Mat Sub Mat Fac Was Fac Fac Machines Disabled 20 | . 1 . 6 . . . 13 Max in Single Turn 9 | . 1 . 1 . . . 9 Machines Repaired . | . . . . . . . . Machines Dismantled . | . . . . . . . . Machines Sabotaged . | . . . . . . . . Overloaded Fab Kills . | . . . . . . . . Hacking | -11 -10 -10 -8 -7 -7 -7 -6 --------- Run | Yrd Mat Sub Mat Fac Was Fac Fac Machines Accessed 20 | . . 1 5 . . 7 7 Terminals 10 | . . . 3 . . 4 3 Fabricators 2 | . . . . . . 1 1 Repair Stations 3 | . . . 1 . . . 2 Recycling Units 2 | . . . 1 . . . 1 Scanalyzers 2 | . . . . . . 2 . Garrison Access . | . . . . . . . . Total Hacks 48 | . . 4 12 . . 18 14 Successful 31 | . . 4 4 . . 14 9 Failed 17 | . . . 8 . . 4 5 Catastrophic 4 | . . . 1 . . 1 2 Database Lockouts . | . . . . . . . . Manual 13 | . . 1 7 . . 4 1 Terminals 21 | . . . 8 . . 9 4 Fabricators 3 | . . . . . . 1 2 Repair Stations 10 | . . . 3 . . . 7 Recycling Units 2 | . . . 1 . . . 1 Scanalyzers 8 | . . . . . . 8 . Garrison Access . | . . . . . . . . Terminal Hacks 14 | . . 4 2 . . 7 1 Record 6 | . . 4 1 . . 1 . Robot Analysis 2 | . . . . . . 2 . Open DSF 2 | . . . . . . 1 1 Level Access Points 1 | . . . . . . 1 . Unreport Threat 1 | . . . 1 . . . . Recall Reinforcements 1 | . . . . . . 1 . Hauler Manifests 1 | . . . . . . 1 . Fabricator Hacks 3 | . . . . . . 1 2 Network Status 1 | . . . . . . 1 . Load Schematic 1 | . . . . . . . 1 Build 1 | . . . . . . . 1 Repair Station Hacks 6 | . . . 1 . . . 5 Scan Component 5 | . . . 1 . . . 4 Repair 1 | . . . . . . . 1 Recycling Unit Hacks 2 | . . . 1 . . . 1 Retrieve Components 2 | . . . 1 . . . 1 Scanalyzer 6 | . . . . . . 6 . Insert Component 3 | . . . . . . 3 . Analyze 3 | . . . . . . 3 . Garrison Access Hacks . | . . . . . . . . Unauthorized Hacks . | . . . . . . . . Terminals . | . . . . . . . . Fabricators . | . . . . . . . . Repair Stations . | . . . . . . . . Recycling Units . | . . . . . . . . Scanalyzers . | . . . . . . . . Garrison Access . | . . . . . . . . Data Cores Recovered . | . . . . . . . . Used . | . . . . . . . . Hacking Detections 15 | . . . 4 . . 6 5 Full Trace Events 10 | . . . 3 . . 3 4 Feedback Events . | . . . . . . . . Feedback Blocked . | . . . . . . . . Robot Schematics Acquired . | . . . . . . . . Robots Built . | . . . . . . . . Authchips . | . . . . . . . . Time . | . . . . . . . . Total Robot Build Rating . | . . . . . . . . Part Schematics Acquired 2 | . . . . . . 2 . Parts Built 2 | . . . . . . . 2 Authchips . | . . . . . . . . Time 42 | . . . . . . . 42 Total Part Build Rating 8 | . . . . . . . 8 Parts Repaired 1 | . . . . . . . 1 Time 22 | . . . . . . . 22 Parts Recycled . | . . . . . . . . Recycled Matter . | . . . . . . . . Retrieved Matter . | . . . . . . . . Retrieved Components 11 | . . . 9 . . . 2 Parts Scanalyzed 3 | . . . . . . 3 . Part Schematics Acquired 2 | . . . . . . 2 . Parts Damaged 1 | . . . . . . 1 . Bothacking | -11 -10 -10 -8 -7 -7 -7 -6 ------------ Run | Yrd Mat Sub Mat Fac Was Fac Fac Used RIF Installer . | . . . . . . . . Robots Hacked . | . . . . . . . . Non-combat . | . . . . . . . . Combat . | . . . . . . . . Robot Hacks Applied . | . . . . . . . . Relay Couplers Released . | . . . . . . . . Fabnet Peak Effective % . | . . . . . . . . Robots Rewired . | . . . . . . . . Allies Hacked 2 | . . . . . . . 2 Hacks Repelled . | . . . . . . . . Allies | -11 -10 -10 -8 -7 -7 -7 -6 -------- Run | Yrd Mat Sub Mat Fac Was Fac Fac Total Allies 20 | . . . . . 20 . . Largest Group 20 | . . . . . 20 20 9 Highest-Rated Group 529 | . . . . . 529 529 287 Highest-Rated Ally 35 | . . . . . 35 35 35 Total Orders . | . . . . . . . . Ally Attacks 263 | . . . . . 13 187 63 Total Damage 5299 | . . . . . 219 3609 1471 Kills 41 | . . . . . 1 29 11 Allies Corrupted . | . . . . . . . . Allies Melted . | . . . . . . . . Intel | -11 -10 -10 -8 -7 -7 -7 -6 ------- Run | Yrd Mat Sub Mat Fac Was Fac Fac Active Infowar (turns) 7866 | . 64 999 . 170 952 1565 4116 Optics 2578 | . 64 999 . . . . 1515 Sensors 2744 | . . . . . . . 2744 Traps 483 | . . . . . . . 483 T.N.C. 622 | . . . . . . . 622 Cloaking 140 | . . . . . . . 140 Jamming 5103 | . . . . 170 952 1565 2416 Robot Analysis Total 2 | . . . . . . 2 . Derelict Logs Recovered . | . . . . . . . . Drone Launches . | . . . . . . . . Drone Recoveries . | . . . . . . . . Exploration | -11 -10 -10 -8 -7 -7 -7 -6 ------------- Run | Yrd Mat Sub Mat Fac Was Fac Fac Turns Passed 10353 | 76 205 1390 1651 333 952 1565 4181 Spaces Moved 4340 | 46 99 700 766 194 444 606 1485 Core 21 | 18 . . . . . . 3 Treads 1167 | . . . 754 194 219 . . Legs 3152 | 28 99 700 12 . 225 606 1482 Wheels . | . . . . . . . . Hover . | . . . . . . . . Flight . | . . . . . . . . Fastest Speed 50 | 50 120 190 153 163 140 250 126 Average Speed 205 | 136 186 190 160 163 205 250 226 Slowest Speed 800 | 250 190 190 250 163 250 250 800 Overloaded Moves . | . . . . . . . . Propulsion Burnouts . | . . . . . . . . Robots Hopped . | . . . . . . . . Potential Cave-ins 11 | . . . . . . . 11 Cave-ins Triggered . | . . . . . . . . Exploration Rate (%) 31 | 4 12 44 38 4 96 17 37 Regions Visited 7 Branch Regions 1 Pre-discovered Areas 1 | . . 1 . . . . . Known Exits Taken 1 | . . . . . . 1 . Unknown Exits Taken 4 | 1 1 1 1 . . . . Scrap Searched . | . . . . . . . . Spaces Dug 29 | . . . . 2 . . 27 Terrain Destroyed 114 | . 7 39 16 2 . 1 49 Melee 29 | . . . . 2 . . 27 Projectile 13 | . . . 5 . . 1 7 AOE 72 | . 7 39 11 . . . 15 Terrain Rammed . | . . . . . . . . Walls Destroyed . | . . . . . . . . Machines Disabled . | . . . . . . . . Actions | -11 -10 -10 -8 -7 -7 -7 -6 --------- Run | Yrd Mat Sub Mat Fac Was Fac Fac Total 5234 | 56 117 749 1006 208 490 646 1962 Wait 226 | 1 2 18 52 4 3 2 144 Move 4334 | 45 98 699 765 194 443 605 1485 Hop . | . . . . . . . . Pick Up 98 | 4 5 15 22 1 11 11 29 Fast Attach 50 | 6 2 . 11 3 7 2 19 Attach 46 | . 1 . 5 1 . 2 37 Detach 2 | . 2 . . . . . . Swap 39 | . . 4 9 1 2 7 16 Drop 93 | . 4 6 32 2 15 10 24 Fire 220 | . 2 7 107 . . 5 99 Melee 109 | . . . . 2 . . 107 Ram . | . . . . . . . . Kick 5 | . 1 . . . . 2 2 Crush 3 | . . . 3 . . . . Escape Stasis . | . . . . . . . . Rewire 9 | . . . . . 9 . . Trap . | . . . . . . . . Miscellaneous . | . . . . . . . . Route ------- -11/Scrapyard -10/Materials -10/Subcaves -8/Materials -7/Factory -7/Waste -7/Factory (discovered 4 exits: *Fac x4) -6/Factory History --------- Turn | Location | Event 29 | -11/Scrapyard | Discovered new exit (range 15) 77 | -11/Scrapyard | Entered Materials 213 | -10/Materials | Discovered new exit (range 10) 282 | -10/Materials | Entered Subcaves 283 | -10/Subcaves | Approached by a straggling Scientist 315 | -10/Subcaves | Build established: Mutant 331 | -10/Subcaves | Shifting Twisted Machinery released Sub. Monowheel 337 | -10/Subcaves | Shifting Twisted Machinery released Flamer 677 | -10/Subcaves | A swath of the cavern ceiling suddenly collapsed 853 | -10/Subcaves | Shifting Twisted Machinery released Sub. Laser 956 | -10/Subcaves | Visited Clippyterm 962 | -10/Subcaves | Learned Factory garrison access intel 1076 | -10/Subcaves | Shifting Twisted Machinery released Battle Cannon 1101 | -10/Subcaves | Learned location of Zion (-6) 1101 | -10/Subcaves | Met a Zionite searching for "candidates" 1546 | -10/Subcaves | Discovered new exit (range 9) 1672 | -10/Subcaves | Entered Materials 1672 | -8/Materials | Evolved 4 slots: Propulsion x1, Utility x3 1714 | -8/Materials | Garrison activated, responded to threat 1750 | -8/Materials | Destroyed 8 combat bots 2102 | -8/Materials | Garrison activated, responded to threat 3097 | -8/Materials | Garrison activated, responded to threat 3206 | -8/Materials | Discovered new exit (range 13) 3323 | -8/Materials | Entered Factory 3323 | -7/Factory | Evolved 2 slots: Utility x1, Weapon x1 3324 | -7/Factory | Loaded intel: 4 garrison access locations 3656 | -7/Factory | Sucked down chute 3656 | -7/Factory | Entered Waste 3657 | -7/Waste | Joined by Warlord forces that had cleared the area 4078 | -7/Waste | Discovered new exit (range 15) 4306 | -7/Waste | A Compactor rumbled back to life 4306 | -7/Waste | Crushed by Compactor (0 parts destroyed, 1 dropped) 4306 | -7/Waste | Spotted C-40 Crusher 4308 | -7/Waste | Allies destroyed C-40 Crusher 4336 | -7/Waste | Found Damper Plating 4608 | -7/Waste | Entered Factory 4608 | -7/Factory | Accompanied by 20 allies 4646 | -7/Factory | Identified exit to DSF 5304 | -7/Factory | Build established: Tank 5410 | -7/Factory | Identified exit to Factory 5417 | -7/Factory | Lost 4 allies 6173 | -7/Factory | Entered another Factory area 6173 | -6/Factory | Accompanied by 9 allies 6173 | -6/Factory | Evolved 2 slots: Power x1, Utility x1 6739 | -6/Factory | Lost 7 allies 6787 | -6/Factory | Build established: Hacker-Tank 7688 | -6/Factory | Cargo convoy interrupted 7725 | -6/Factory | Build established: Hacker-Mutant 8598 | -6/Factory | Lost 4 parts (1p1n1u1w) 8875 | -6/Factory | Build established: Scavenger-Mutant 9220 | -6/Factory | Found Prototype Protection 9599 | -6/Factory | Fabricated Imp. Titanium Leg (x2) 9831 | -6/Factory | Lost 6 parts (2p3u1w) 9909 | -6/Factory | Repaired Med. Reactive Plating 9958 | -6/Factory | Core integrity fell below 50% 10024 | -6/Factory | System corruption reached 10% 10041 | -6/Factory | Lost 6 parts (2p4n) 10102 | -6/Factory | Build established: Mutant 10334 | -6/Factory | Core integrity fell below 20% 10354 | -6/Factory | Destroyed by X-72 Disruptor with Arc Projector Last Messages --------------- 10343_ M-28 Smith repairs H-61 Shepherd Broken Rnf. Deuterium Engine. 10344_ H-61 Shepherd heat damages core (-21). 10345_ M-28 Smith repairs H-61 Shepherd. 10346_ H-61 Shepherd heat damages Hrd. Heavy Armor Plating. 10346_ Slug penetrates Wall. 10347_ M-28 Smith repairs H-61 Shepherd Unknown Ballistic Cannon. 10347_ Slug penetrates Construction Platform. 10348_ H-61 Shepherd heat spikes uncontrollably. 10349_ M-28 Smith repairs H-61 Shepherd Hrd. Heavy Armor Plating. 10350_ H-61 Shepherd heat spikes uncontrollably. 10350_ Slug penetrates Wall. 10351_ M-28 Smith repairs H-61 Shepherd Graphene Brace. 10352_ H-61 Shepherd heat spikes uncontrollably. 10352_ Mic. Nuclear Core destroyed. 10352_ Imp. Titanium Leg destroyed. 10353_ H-61 Shepherd heat damages core (-20). 10353_ Slug penetrates Wall. 10354_ H-61 Shepherd heat damages Arm. Treads. 10354_ U-05 Engineer builds a Wall. 10354_ M-28 Smith repairs H-61 Shepherd. Map ----- +----------------------------------------------------+ | """ ??????????????????????????? | | """ ??????????????????????????? | | """ "" ? ???????????????????????? | | T" #??????????????????????? | | "" #??????????????????????????? | | % #??????????????????????????? | | #?????????????????????# | | +### ##############?????????????????????# | | # # #?????????????????????????# | | # # """" #?????????????????????????# | | + + """" #?????????????????????????# | | # # """" #?????????????????????????# | | # # """" #?????????????????????????# ??? | | """# # """" #??????????????????????????????? | | Y"# # """" #??????????????????????????????? | | """# # #??????????????????????????????? | | # # #??????????????????????????????? | | #### ###/######??????????????????????????????? | | ???# % #?# #?#######???????????????????????????? | | #### #?# #?#! #???????????????????????????? | | % #?# #?# #???????????????????????????? | | * ###?# ### ##??????????????????????????? | | #???# # ; "#????###???????????????????? | | #?### ;;; #####;;##??????????????????? | | #?# #??????????????????? | | ### !** % % %@ % #??????????????????? | | =%= ! " #??????????????????? | | ###### ### !=x % ; ???????????????? | | ?????# #?# !mH % " # ????????????? | | ?????? #?##;m % "" #??]=p ?????????? | | ####?? #??## ; "" +????! =??????????? | | #??+#???#+## ;; """ #????! ==?????????? | | #??????? ; ; [ #???? == ???????? | | "" #?????? h###############?????? ####### | | """#????? ?????????????????????? "" | | R"#????? ?????????????????????? "" | | """#???? * ????????????????????""""" | | #??? ????????????????? | | ####??? #???????????????? | | ???????? #????????????????######+########## | | ??????? #????????????????# #?# | | ??????? #????????????????# """ #?# | | ?????? #????????????????# """ #?# | | ?????? #????????????????# """ ### | | ?????############??????????????### + + | | ##########??########???????????# / ### | | "" #??# = #???????????### #?# | | F"" """ #??#""" #?????????????# #?# | | "" """ #??#"Y #?????????????# "" "" #?# | | ! """ ####""" #?????????????# "F "" #?## | +----------------------------------------------------+ Best States ------------- Heat Dissipation 59 Energy Generation 31 Energy Capacity 990 Matter Stores 300 Matter Capacity 300 Sight Range 22 Robot Scan Range 16 Terrain Scan Density 10 Jamming Range 12 Cloak Strength 2 Additional Mass Support 9 Base Temperature (-) 100 EM Shielding 2 Armor Coverage 450 Resistance: KI 30 Utility Shielding 66 Melee Speed Boost 20 Evasion (%) 50 Targeting Accuracy 8 Melee Accuracy 5 Target Analysis 5 Recoil Reduction 3 Kinecelleration 30 Offensive Hacking 22 Item Schematics ----------------- Imp. Carbon-fiber Leg | -7/Factory | Scanalyzed Imp. Titanium Leg | -7/Factory | Scanalyzed Robot Schematics ------------------ None Fabricated ------------ Imp. Titanium Leg | x2 | -6/Factory Repaired ---------- Med. Reactive Plating | 37% | -6/Factory Alien Tech Used ----------------- None Achievements -------------- Everything Is Under Control Challenges ------------ None Game ------ Seed LauncherSingularityCoupler Manual? 0 Play Time 01:58:15 Cumulative 47.9 hours Start 2025.09.12 @ 10:38:54 End 2025.09.12 @ 17:59:05 Sessions 7 Manual Loads 0 Difficulty Rogue Special Mode None Game No. 53 Rogue 53 Adventurer 0 Explorer 0 Win Type - Total 0 Types 0/0/0/0/0/0/0/0/0/0 Lore% 17 Gallery% 29 Achievement% 26 Wizard Run 0 Options --------- Layout 1 ASCII 0 Keyboard 0 Movement Numpad Keybinds 0 Fullscreen 1 Font 32/SmallcapsGlow Map View 77x35 Zoom Use 0% Tactical HUD 1 Map Filters NONE Filters NONE Steam 1 RUN: bc34ca0d-8399-4d83-a0b0-67f178be9f67